fUST/lending_fUST_20240424
["ID","MTS","AMOUNT","RATE_DAILY","PERIOD"]
[323336118,1713904242614,-500.0,0.00019452,2]
[323336121,1713904242622,-500.0,0.00019452,2]
[323336123,1713904242631,-500.0,0.00019452,2]
[323336126,1713904242640,-500.0,0.00019452,2]
[323336130,1713904242649,-889.38,0.00019452,2]
[323336132,1713904242658,-500.0,0.00019452,2]
[323336135,1713904242667,-500.0,0.00019452,2]
[323336138,1713904242676,-500.0,0.00019452,2]
[323336140,1713904242685,-897.69,0.00019452,2]
[323336141,1713904242693,-636.97,0.00019452,2]
[323336143,1713904242702,-1150.37,0.00019452,2]
[323336146,1713904242711,-500.0,0.00019452,2]
[323336148,1713904242720,-500.0,0.00019452,2]
[323336150,1713904242728,-500.0,0.00019452,2]
[323336152,1713904242737,-500.0,0.00019452,2]
[323336154,1713904242746,-828.81,0.00019452,2]
[323336156,1713904242755,-638.27,0.00019452,2]
[323336157,1713904242764,-500.0,0.00019452,2]
[323336159,1713904242773,-169.37155114,0.00019452,2]
[323336161,1713904242782,-500.0,0.00019452,2]
[323336163,1713904242793,-500.0,0.00019452,2]
[323336165,1713904242802,-483.12347491,0.00019452,2]
[323336167,1713904242812,-500.0,0.00019452,2]
[323336170,1713904242821,-500.0,0.00019452,2]
[323336172,1713904242830,-720.39,0.00019452,2]
[323336174,1713904242839,-500.0,0.00019452,2]
[323336175,1713904242848,-500.0,0.00019452,2]
[323336177,1713904242859,-500.0,0.00019452,2]
[323336179,1713904242868,-500.0,0.00019452,2]
[323336182,1713904242877,-500.0,0.00019452,2]
[323336184,1713904242886,-1908.15,0.00019452,2]
[323336187,1713904242895,-500.0,0.00019452,2]
[323336190,1713904242904,-500.0,0.00019452,2]
[323336193,1713904242913,-500.0,0.00019452,2]
[323336196,1713904242922,-500.0,0.00019452,2]
[323336199,1713904242931,-606.14,0.00019452,2]
[323336201,1713904242940,-500.0,0.00019452,2]
[323336205,1713904242949,-500.0,0.00019452,2]
[323336208,1713904242958,-500.0,0.00019452,2]
[323336212,1713904242967,-1456.0,0.00019452,2]
[323336215,1713904242976,-500.0,0.00019452,2]
[323336219,1713904242986,-781.46,0.00019452,2]
[323336222,1713904242995,-500.0,0.00019452,2]
[323336224,1713904243005,-500.0,0.00019452,2]
[323336226,1713904243013,-1094.8,0.00019452,2]
[323336227,1713904243023,-500.0,0.00019452,2]
[323336229,1713904243032,-500.0,0.00019452,2]
[323336231,1713904243042,-1360.92,0.00019452,2]
[323336233,1713904243051,-500.0,0.00019452,2]
[323336235,1713904243062,-499.9984897,0.00019452,2]
[323336237,1713904243071,-500.0,0.00019452,2]
[323336239,1713904243079,-1056.31,0.00019452,2]
[323336241,1713904243088,-500.0,0.00019452,2]
[323336243,1713904243097,-500.0,0.00019452,2]
[323336244,1713904243106,-522.25,0.00019452,2]
[323336246,1713904243115,-500.0,0.00019452,2]
[323336248,1713904243124,-500.0,0.00019452,2]
[323336250,1713904243133,-844.75,0.00019452,2]
[323336252,1713904243142,-500.0,0.00019452,2]
[323336254,1713904243151,-790.99,0.00019452,2]
[323336256,1713904243160,-500.0,0.00019452,2]
[323336258,1713904243169,-500.0,0.00019452,2]
[323336259,1713904243178,-198.42895521,0.00019452,2]
[323336261,1713904243187,-3051.52,0.00019452,2]
[323336263,1713904243196,-500.0,0.00019452,2]
[323336265,1713904243205,-808.9,0.00019452,2]
[323336267,1713904243215,-500.0,0.00019452,2]
[323336269,1713904243224,-574.46,0.00019452,2]
[323336271,1713904243234,-901.91,0.00019452,2]
[323336273,1713904243243,-172.98940092,0.00019452,2]
[323336275,1713904243252,-500.0,0.00019452,2]
[323336277,1713904243261,-630.27,0.00019452,2]
[323336278,1713904243270,-500.0,0.00019452,2]
[323336280,1713904243279,-1032.39,0.00019452,2]
[323336282,1713904243288,-612.47,0.00019452,2]
[323336284,1713904243299,-500.0,0.00019452,2]
[323336286,1713904243308,-500.0,0.00019452,2]
[323336288,1713904243316,-500.0,0.00019452,2]
[323336290,1713904243325,-500.0,0.00019452,2]
[323336292,1713904243335,-1494.24,0.00019452,2]
[323336294,1713904243347,-500.0,0.00019452,2]
[323336295,1713904243356,-553.42,0.00019452,2]
[323336297,1713904243365,-917.28,0.00019452,2]
[323336299,1713904243374,-500.0,0.00019452,2]
[323336301,1713904243383,-500.0,0.00019452,2]
[323336303,1713904243393,-500.0,0.00019452,2]
[323336305,1713904243402,-500.0,0.00019452,2]
[323336307,1713904243410,-942.81,0.00019452,2]
[323336309,1713904243421,-500.0,0.00019452,2]
[323336311,1713904243430,-500.0,0.00019452,2]
[323336313,1713904243439,-500.0,0.00019452,2]
[323336314,1713904243448,-500.0,0.00019452,2]
[323336316,1713904243457,-856.27,0.00019452,2]
[323336318,1713904243467,-1530.97,0.00019452,2]
[323336320,1713904243476,-500.0,0.00019452,2]
[323336322,1713904243485,-500.0,0.00019452,2]
[323336324,1713904243494,-500.0,0.00019452,2]
[323336326,1713904243503,-500.0,0.00019452,2]
[323336328,1713904243512,-722.67,0.00019452,2]
[323336330,1713904243520,-507.42,0.00019452,2]
[323336332,1713904243530,-849.75,0.00019452,2]
[323336334,1713904243539,-2244.97,0.00019452,2]
[323336336,1713904243548,-500.0,0.00019452,2]
[323336337,1713904243557,-500.0,0.00019452,2]
[323336339,1713904243566,-500.0,0.00019452,2]
[323336341,1713904243575,-1348.29,0.00019452,2]
[323336343,1713904243584,-500.0,0.00019452,2]
[323336345,1713904243593,-500.0,0.00019452,2]
[323336347,1713904243602,-526.99,0.00019452,2]
[323336349,1713904243611,-1468.32,0.00019452,2]
[323336351,1713904243620,-621.39,0.00019452,2]
[323336353,1713904243633,-500.0,0.00019452,2]
[323336354,1713904243642,-1653.86,0.00019452,2]
[323336356,1713904243650,-500.0,0.00019452,2]
[323336358,1713904243659,-1058.63,0.00019452,2]
[323336360,1713904243669,-643.86,0.00019452,2]
[323336362,1713904243677,-500.0,0.00019452,2]
[323336364,1713904243686,-500.0,0.00019452,2]
[323336366,1713904243695,-500.0,0.00019452,2]
[323336368,1713904243704,-1688.62,0.00019452,2]
[323336370,1713904243713,-527.94,0.00019452,2]
[323336372,1713904243722,-500.0,0.00019452,2]
[323336374,1713904243731,-1184.5,0.00019452,2]
[323336375,1713904243740,-500.0,0.00019452,2]
[323336377,1713904243749,-500.0,0.00019452,2]
[323336379,1713904243757,-500.0,0.00019452,2]
[323336381,1713904243766,-500.0,0.00019452,2]
[323336383,1713904243775,-762.55,0.00019452,2]
[323336385,1713904243784,-210.80801574,0.00019452,2]
[323336399,1713904243913,-525.8,0.00019452,2]
[323336401,1713904243923,-606.67,0.00019452,2]
[323336403,1713904243932,-508.01,0.00019452,2]
[323336405,1713904243941,-500.0,0.00019452,2]
[323336407,1713904243951,-500.0,0.00019452,2]
[323336409,1713904243960,-1346.94,0.00019452,2]
[323336411,1713904243969,-662.26,0.00019452,2]
[323336413,1713904243978,-243.54433224,0.00019452,2]
[323336415,1713904243987,-900.13,0.00019452,2]
[323336417,1713904243996,-500.0,0.00019452,2]
[323336419,1713904244006,-500.0,0.00019452,2]
[323336420,1713904244014,-500.0,0.00019452,2]
[323336422,1713904244023,-500.0,0.00019452,2]
[323336424,1713904244032,-1126.2,0.00019452,2]
[323336426,1713904244044,-581.8,0.00019452,2]
[323336428,1713904244053,-514.98,0.00019452,2]
[323336430,1713904244063,-2075.8,0.00019452,2]
[323336432,1713904244072,-500.0,0.00019452,2]
[323336434,1713904244081,-999.25,0.00019452,2]
[323336436,1713904244090,-500.0,0.00019452,2]
[323336438,1713904244099,-590.38,0.00019452,2]
[323336439,1713904244107,-500.0,0.00019452,2]
[323336441,1713904244116,-500.0,0.00019452,2]
[323336443,1713904244126,-627.45,0.00019452,2]
[323336445,1713904244135,-1826.27,0.00019452,2]
[323336447,1713904244144,-3360.44,0.00019452,2]
[323336449,1713904244153,-500.0,0.00019452,2]
[323336451,1713904244162,-500.78952841,0.00019452,2]
[323336452,1713904244171,-1107.39,0.00019452,2]
[323336453,1713904244180,-500.0,0.00019452,2]
[323336454,1713904244188,-500.0,0.00019452,2]
[323336455,1713904244197,-500.0,0.00019452,2]
[323336456,1713904244206,-500.0,0.00019452,2]
[323336457,1713904244215,-1019.65,0.00019452,2]
[323336458,1713904244223,-500.0,0.00019452,2]
[323336459,1713904244232,-500.0,0.00019452,2]
[323336460,1713904244241,-500.0,0.00019452,2]
[323336461,1713904244249,-500.0,0.00019452,2]
[323336462,1713904244258,-1245.05,0.00019452,2]
[323336463,1713904244266,-6840.59,0.00019452,2]
[323336464,1713904244275,-503.92402627,0.00019452,2]
[323336465,1713904244284,-500.0,0.00019452,2]
[323336466,1713904244295,-500.0,0.00019452,2]
[323336467,1713904244304,-500.0,0.00019452,2]
[323336468,1713904244313,-2959.17,0.00019452,2]
[323336469,1713904244322,-500.0,0.00019452,2]
[323336470,1713904244330,-501.15,0.00019452,2]
[323336471,1713904244340,-500.0,0.00019452,2]
[323336472,1713904244352,-4008.73,0.00019452,2]
[323336473,1713904244361,-500.0,0.00019452,2]
[323336474,1713904244370,-158.48390408,0.00019452,2]
[323336475,1713904244379,-3664.35,0.00019452,2]
[323336476,1713904244389,-500.0,0.00019452,2]
[323336477,1713904244397,-500.0,0.00019452,2]
[323336478,1713904244406,-500.08025782,0.00019452,2]
[323336479,1713904244415,-500.0,0.00019452,2]
[323336480,1713904244425,-4795.23,0.00019452,2]
[323336481,1713904244434,-500.0,0.00019452,2]
[323336482,1713904244443,-500.0,0.00019452,2]
[323336483,1713904244452,-500.0,0.00019452,2]
[323336484,1713904244461,-525.54,0.00019452,2]
[323336485,1713904244470,-559.48,0.00019452,2]
[323336487,1713904244479,-549.94,0.00019452,2]
[323336488,1713904244488,-500.0,0.00019452,2]
[323336489,1713904244497,-500.0,0.00019452,2]
[323336491,1713904244506,-1339.94,0.00019452,2]
[323336492,1713904244515,-621.46226607,0.00019452,2]
[323336494,1713904244524,-1509.18,0.00019452,2]
[323336496,1713904244533,-500.0,0.00019452,2]
[323336498,1713904244543,-2367.67,0.00019452,2]
[323336500,1713904244551,-500.0,0.00019452,2]
[323336502,1713904244560,-511.34,0.00019452,2]
[323336504,1713904244569,-863.11,0.00019452,2]
[323336506,1713904244578,-842.58,0.00019452,2]
[323336508,1713904244587,-500.0,0.00019452,2]
[323336510,1713904244596,-500.0,0.00019452,2]
[323336512,1713904244605,-541.68,0.00019452,2]
[323336514,1713904244614,-500.0,0.00019452,2]
[323336516,1713904244623,-500.0,0.00019452,2]
[323336518,1713904244632,-500.0,0.00019452,2]
[323336520,1713904244641,-2228.18,0.00019452,2]
[323336522,1713904244650,-500.0,0.00019452,2]
[323336524,1713904244659,-500.0,0.00019452,2]
[323336526,1713904244668,-602.76,0.00019452,2]
[323336528,1713904244678,-500.0,0.00019452,2]
[323336530,1713904244687,-500.0,0.00019452,2]
[323336532,1713904244696,-500.0,0.00019452,2]
[323336534,1713904244705,-500.0,0.00019452,2]
[323336536,1713904244713,-500.0,0.00019452,2]
[323336538,1713904244723,-490.13024839,0.00019452,2]
[323336540,1713904244732,-500.0,0.00019452,2]
[323336542,1713904244740,-500.0,0.00019452,2]
[323336544,1713904244749,-910.17,0.00019452,2]
[323336546,1713904244758,-21514.77,0.00019452,2]
[323336549,1713904244770,-500.0,0.00019452,2]
[323336551,1713904244779,-500.0,0.00019452,2]
[323336552,1713904244788,-1895.54,0.00019452,2]
[323336554,1713904244798,-500.0,0.00019452,2]
[323336556,1713904244806,-500.0,0.00019452,2]
[323336558,1713904244816,-1762.98,0.00019452,2]
[323336560,1713904244826,-500.0,0.00019452,2]
[323336563,1713904244837,-6245.12,0.00019452,2]
[323336565,1713904244846,-9897.47,0.00019452,2]
[323336567,1713904244855,-500.0,0.00019452,2]
[323336569,1713904244864,-6088.79,0.00019452,2]
[323336570,1713904244874,-500.0,0.00019452,2]
[323336573,1713904244883,-1749.22,0.00019452,2]
[323336575,1713904244892,-1570.41,0.00019452,2]
[323336577,1713904244901,-2065.0,0.00019452,2]
[323336579,1713904244910,-500.0,0.00019452,2]
[323336581,1713904244919,-1017.48,0.00019452,2]
[323336583,1713904244928,-9622.55,0.00019452,2]
[323336585,1713904244937,-500.0,0.00019452,2]
[323336587,1713904244946,-759.63,0.00019452,2]
[323336589,1713904244956,-9600.98,0.00019452,2]
[323336591,1713904244966,-500.0,0.00019452,2]
[323336593,1713904244976,-500.0,0.00019452,2]
[323336595,1713904244984,-500.0,0.00019452,2]
[323336597,1713904244993,-6987.82,0.00019452,2]
[323336599,1713904245002,-527.75,0.00019452,2]
[323336601,1713904245011,-500.0,0.00019452,2]
[323336603,1713904245020,-397.41416398,0.00019452,2]
[323336605,1713904245030,-1959.36,0.00019452,2]
[323336606,1713904245039,-500.0,0.00019452,2]
[323336608,1713904245049,-500.0,0.00019452,2]
[323336610,1713904245058,-551.25531584,0.00019452,2]
[323336613,1713904245067,-500.0,0.00019452,2]
[323336614,1713904245077,-417.0,0.00019514,2]
[323336616,1713904245086,-500.0,0.00019726,2]
[323336618,1713904245095,-500.0,0.00019726,2]
[323336621,1713904245105,-500.0,0.00019726,2]
[323336623,1713904245114,-889.38,0.00019726,2]
[323336624,1713904245124,-500.0,0.00019726,2]
[323336626,1713904245134,-500.0,0.00019726,2]
[323336628,1713904245143,-500.0,0.00019726,2]
[323336631,1713904245154,-897.69,0.00019726,2]
[323336632,1713904245164,-636.97,0.00019726,2]
[323336635,1713904245173,-1150.37,0.00019726,2]
[323336636,1713904245182,-500.0,0.00019726,2]
[323336638,1713904245191,-500.0,0.00019726,2]
[323336640,1713904245201,-500.0,0.00019726,2]
[323336643,1713904245210,-500.0,0.00019726,2]
[323336644,1713904245219,-828.81,0.00019726,2]
[323336646,1713904245229,-638.27,0.00019726,2]
[323336648,1713904245238,-500.0,0.00019726,2]
[323336651,1713904245247,-500.0,0.00019726,2]
[323336653,1713904245256,-500.0,0.00019726,2]
[323336655,1713904245266,-500.0,0.00019726,2]
[323336656,1713904245275,-500.0,0.00019726,2]
[323336658,1713904245284,-720.39,0.00019726,2]
[323336661,1713904245294,-500.0,0.00019726,2]
[323336663,1713904245304,-500.0,0.00019726,2]
[323336665,1713904245313,-500.0,0.00019726,2]
[323336667,1713904245322,-500.0,0.00019726,2]
[323336668,1713904245332,-500.0,0.00019726,2]
[323336671,1713904245343,-1908.15,0.00019726,2]
[323336672,1713904245355,-296.60357415,0.00019726,2]
[323336674,1713904245364,-500.0,0.00019726,2]
[323336676,1713904245374,-500.0,0.00019726,2]
[323336678,1713904245385,-500.0,0.00019726,2]
[323336680,1713904245394,-500.0,0.00019726,2]
[323336682,1713904245403,-606.14,0.00019726,2]
[323336683,1713904245412,-618.49311596,0.00019726,2]
[323336684,1713904245422,-1456.0,0.00019726,2]
[323336685,1713904245432,-500.0,0.00019726,2]
[323336686,1713904245440,-781.46,0.00019726,2]
[323336687,1713904245449,-500.0,0.00019726,2]
[323336688,1713904245458,-500.0,0.00019726,2]
[323336689,1713904245467,-1094.8,0.00019726,2]
[323336690,1713904245476,-500.0,0.00019726,2]
[323336691,1713904245485,-500.0,0.00019726,2]
[323336692,1713904245493,-1360.92,0.00019726,2]
[323336693,1713904245502,-500.0,0.00019726,2]
[323336694,1713904245510,-454.41937308,0.00019726,2]
[323336695,1713904245519,-1056.31,0.00019726,2]
[323336696,1713904245528,-500.0,0.00019726,2]
[323336697,1713904245536,-500.0,0.00019726,2]
[323336698,1713904245545,-522.25,0.00019726,2]
[323336699,1713904245554,-500.0,0.00019726,2]
[323336700,1713904245562,-844.75,0.00019726,2]
[323336701,1713904245571,-500.0,0.00019726,2]
[323336702,1713904245580,-790.99,0.00019726,2]
[323336703,1713904245589,-500.0,0.00019726,2]
[323336704,1713904245598,-500.0,0.00019726,2]
[323336705,1713904245607,-3051.52,0.00019726,2]
[323336707,1713904245618,-500.0,0.00019726,2]
[323336708,1713904245627,-808.9,0.00019726,2]
[323336709,1713904245636,-500.0,0.00019726,2]
[323336710,1713904245644,-574.46,0.00019726,2]
[323336711,1713904245653,-901.91,0.00019726,2]
[323336712,1713904245662,-500.0,0.00019726,2]
[323336713,1713904245672,-630.27,0.00019726,2]
[323336714,1713904245681,-500.0,0.00019726,2]
[323336715,1713904245690,-1032.39,0.00019726,2]
[323336716,1713904245699,-612.47,0.00019726,2]
[323336717,1713904245708,-500.0,0.00019726,2]
[323336718,1713904245718,-500.0,0.00019726,2]
[323336719,1713904245727,-500.0,0.00019726,2]
[323336720,1713904245736,-500.0,0.00019726,2]
[323336722,1713904245745,-1494.24,0.00019726,2]
[323336724,1713904245754,-500.0,0.00019726,2]
[323336725,1713904245763,-553.42,0.00019726,2]
[323336727,1713904245772,-917.28,0.00019726,2]
[323336728,1713904245781,-500.0,0.00019726,2]
[323336729,1713904245791,-500.0,0.00019726,2]
[323336730,1713904245801,-500.0,0.00019726,2]
[323336731,1713904245810,-500.0,0.00019726,2]
[323336732,1713904245819,-942.81,0.00019726,2]
[323336733,1713904245829,-500.0,0.00019726,2]
[323336734,1713904245838,-500.0,0.00019726,2]
[323336735,1713904245848,-500.0,0.00019726,2]
[323336736,1713904245858,-500.0,0.00019726,2]
[323336737,1713904245867,-856.27,0.00019726,2]
[323336738,1713904245876,-1530.97,0.00019726,2]
[323336739,1713904245886,-500.0,0.00019726,2]
[323336741,1713904245895,-500.0,0.00019726,2]
[323336742,1713904245903,-500.0,0.00019726,2]
[323336744,1713904245912,-500.0,0.00019726,2]
[323336745,1713904245921,-722.67,0.00019726,2]
[323336746,1713904245930,-507.42,0.00019726,2]
[323336747,1713904245939,-849.75,0.00019726,2]
[323336748,1713904245948,-2244.97,0.00019726,2]
[323336749,1713904245957,-500.0,0.00019726,2]
[323336750,1713904245967,-500.0,0.00019726,2]
[323336751,1713904245976,-500.0,0.00019726,2]
[323336752,1713904245985,-1348.29,0.00019726,2]
[323336753,1713904245995,-500.0,0.00019726,2]
[323336754,1713904246005,-504.08988695,0.00019726,2]
[323336755,1713904246014,-526.99,0.00019726,2]
[323336756,1713904246023,-1468.32,0.00019726,2]
[323336757,1713904246032,-621.39,0.00019726,2]
[323336758,1713904246042,-500.0,0.00019726,2]
[323336759,1713904246051,-1653.86,0.00019726,2]
[323336760,1713904246061,-485.33448319,0.00019726,2]
[323336761,1713904246070,-1058.63,0.00019726,2]
[323336762,1713904246079,-643.86,0.00019726,2]
[323336763,1713904246089,-500.0,0.00019726,2]
[323336764,1713904246098,-500.0,0.00019726,2]
[323336765,1713904246107,-500.0,0.00019726,2]
[323336767,1713904246117,-1688.62,0.00019726,2]
[323336769,1713904246126,-527.94,0.00019726,2]
[323336771,1713904246135,-500.0,0.00019726,2]
[323336773,1713904246145,-1184.5,0.00019726,2]
[323336774,1713904246154,-500.0,0.00019726,2]
[323336775,1713904246163,-500.0,0.00019726,2]
[323336776,1713904246173,-287.98270731,0.00019726,2]
[323336777,1713904246182,-500.0,0.00019726,2]
[323336778,1713904246191,-762.55,0.00019726,2]
[323336780,1713904246200,-525.8,0.00019726,2]
[323336781,1713904246210,-606.67,0.00019726,2]
[323336782,1713904246219,-508.01,0.00019726,2]
[323336783,1713904246229,-500.0,0.00019726,2]
[323336784,1713904246238,-627.95456207,0.00019726,2]
[323336785,1713904246247,-1346.94,0.00019726,2]
[323336786,1713904246257,-662.26,0.00019726,2]
[323336787,1713904246266,-900.13,0.00019726,2]
[323336788,1713904246276,-500.0,0.00019726,2]
[323336789,1713904246400,-452.62828504,0.00019726,2]
[323336790,1713904246410,-500.0,0.00019726,2]
[323336791,1713904246420,-163.76129234,0.00019726,2]
[323336792,1713904246430,-1126.2,0.00019726,2]
[323336793,1713904246439,-581.8,0.00019726,2]
[323336794,1713904246448,-514.98,0.00019726,2]
[323336795,1713904246456,-2075.8,0.00019726,2]
[323336796,1713904246465,-500.0,0.00019726,2]
[323336797,1713904246474,-999.25,0.00019726,2]
[323336798,1713904246483,-500.0,0.00019726,2]
[323336800,1713904246492,-590.38,0.00019726,2]
[323336802,1713904246502,-500.0,0.00019726,2]
[323336804,1713904246511,-627.45,0.00019726,2]
[323336807,1713904246520,-1826.27,0.00019726,2]
[323336809,1713904246529,-3360.44,0.00019726,2]
[323336811,1713904246539,-500.0,0.00019726,2]
[323336812,1713904246549,-1107.39,0.00019726,2]
[323336814,1713904246558,-500.0,0.00019726,2]
[323336816,1713904246568,-500.0,0.00019726,2]
[323336818,1713904246577,-573.5403824,0.00019726,2]
[323336820,1713904246586,-500.0,0.00019726,2]
[323336822,1713904246595,-1019.65,0.00019726,2]
[323336824,1713904246604,-500.0,0.00019726,2]
[323336825,1713904246614,-500.0,0.00019726,2]
[323336826,1713904246622,-500.0,0.00019726,2]
[323336827,1713904246631,-500.0,0.00019726,2]
[323336828,1713904246640,-1245.05,0.00019726,2]
[323336829,1713904246649,-6840.59,0.00019726,2]
[323336830,1713904246658,-500.0,0.00019726,2]
[323336831,1713904246667,-500.0,0.00019726,2]
[323336832,1713904246676,-500.0,0.00019726,2]
[323336833,1713904246685,-2959.17,0.00019726,2]
[323336834,1713904246694,-501.15,0.00019726,2]
[323336835,1713904246703,-4008.73,0.00019726,2]
[323336836,1713904246712,-500.0,0.00019726,2]
[323336837,1713904246722,-500.0,0.00019726,2]
[323336838,1713904246731,-3664.35,0.00019726,2]
[323336839,1713904246740,-500.0,0.00019726,2]
[323336840,1713904246750,-500.0,0.00019726,2]
[323336841,1713904246759,-500.0,0.00019726,2]
[323336842,1713904246768,-4795.23,0.00019726,2]
[323336843,1713904246777,-500.0,0.00019726,2]
[323336844,1713904246786,-500.0,0.00019726,2]
[323336845,1713904246796,-525.54,0.00019726,2]
[323336846,1713904246805,-549.94,0.00019726,2]
[323336847,1713904246814,-559.48,0.00019726,2]
[323336848,1713904246824,-500.0,0.00019726,2]
[323336849,1713904246833,-500.0,0.00019726,2]
[323336850,1713904246842,-1339.94,0.00019726,2]
[323336851,1713904246852,-1509.18,0.00019726,2]
[323336852,1713904246861,-493.93279549,0.00019726,2]
[323336853,1713904246870,-2367.67,0.00019726,2]
[323336854,1713904246879,-500.0,0.00019726,2]
[323336855,1713904246888,-511.34,0.00019726,2]
[323336856,1713904246898,-863.11,0.00019726,2]
[323336857,1713904246907,-842.58,0.00019726,2]
[323336858,1713904246916,-500.0,0.00019726,2]
[323336859,1713904246926,-541.68,0.00019726,2]
[323336860,1713904246935,-617.10962198,0.00019726,2]
[323336861,1713904246944,-500.0,0.00019726,2]
[323336862,1713904246953,-500.0,0.00019726,2]
[323336863,1713904246963,-2228.18,0.00019726,2]
[323336864,1713904246977,-500.0,0.00019726,2]
[323336865,1713904246987,-500.0,0.00019726,2]
[323336866,1713904247008,-602.76,0.00019726,2]
[323336867,1713904247033,-500.0,0.00019726,2]
[323336868,1713904247043,-500.0,0.00019726,2]
[323336869,1713904247053,-500.0,0.00019726,2]
[323336870,1713904247063,-500.0,0.00019726,2]
[323336871,1713904247072,-500.0,0.00019726,2]
[323336872,1713904247082,-500.0,0.00019726,2]
[323336873,1713904247092,-500.0,0.00019726,2]
[323336874,1713904247102,-910.17,0.00019726,2]
[323336875,1713904247112,-21514.77,0.00019726,2]
[323336876,1713904247122,-514.42969821,0.00019726,2]
[323336877,1713904247132,-1895.54,0.00019726,2]
[323336878,1713904247141,-500.0,0.00019726,2]
[323336879,1713904247150,-500.0,0.00019726,2]
[323336880,1713904247160,-1762.98,0.00019726,2]
[323336881,1713904247170,-6245.12,0.00019726,2]
[323336882,1713904247180,-9897.47,0.00019726,2]
[323336883,1713904247190,-6088.79,0.00019726,2]
[323336884,1713904247200,-500.0,0.00019726,2]
[323336885,1713904247210,-1749.22,0.00019726,2]
[323336886,1713904247219,-1570.41,0.00019726,2]
[323336887,1713904247230,-2065.0,0.00019726,2]
[323336888,1713904247241,-500.0,0.00019726,2]
[323336889,1713904247250,-1017.48,0.00019726,2]
[323336890,1713904247260,-9622.55,0.00019726,2]
[323336891,1713904247270,-500.0,0.00019726,2]
[323336892,1713904247280,-759.63,0.00019726,2]
[323336893,1713904247289,-9600.98,0.00019726,2]
[323336894,1713904247300,-500.0,0.00019726,2]
[323336895,1713904247309,-500.0,0.00019726,2]
[323336896,1713904247320,-6987.82,0.00019726,2]
[323336897,1713904247330,-527.75,0.00019726,2]
[323336898,1713904247340,-1959.36,0.00019726,2]
[323336899,1713904247354,-500.0,0.00019726,2]
[323336900,1713904247364,-500.0,0.00019726,2]
[323336901,1713904247373,-500.0,0.00019726,2]
[323336902,1713904247383,-153.0,0.00019732,2]
[323336903,1713904247393,-153.0,0.00019732,2]
[323336904,1713904247402,-1000.71106207,0.00019737,2]
[323336905,1713904247411,-154.82968734,0.0002,2]
[323336906,1713904247422,-817.21418268,0.0002,2]
[323336907,1713904247431,-400.0,0.0002,2]
[323336908,1713904247441,-154.82968734,0.0002,2]
[323336909,1713904247452,-10479.21612204,0.0002,2]
[323336910,1713904247462,-1301.42585683,0.0002,2]
[323336911,1713904247471,-463.56837054,0.0002,2]
[323336912,1713904247480,-319.72058798,0.0002,2]
[323336913,1713904247490,-154.82968734,0.0002,2]
[323336914,1713904247500,-238.88786072,0.0002,2]
[323336915,1713904247509,-277.98874346,0.0002,2]